[Event "Championnat du monde jeunes U12"]
[Date "2024.11.26"]
[White "Padure, Dragos-Alexandru"]
[Black "Ivancic, Ivan"]
[WhiteElo "1822"]
[BlackElo "2091"]
[Round "11.32"]
[Result "0-1"]
[TimeControl "5400+30"]

1. e4 {[%clk 1:30:56]} 1... c5 {[%clk 1:30:45]} 2. Nf3 {[%clk 1:31:21]} 2... Nc6
{[%clk 1:31:06]} 3. d4 {[%clk 1:31:46]} 3... cxd4 {[%clk 1:31:30]} 4. Nxd4
{[%clk 1:32:09]} 4... Nf6 {[%clk 1:31:52]} 5. Nc3 {[%clk 1:32:34]} 5... d6
{[%clk 1:31:31]} 6. Bg5 {[%clk 1:32:40]} 6... e6 {[%clk 1:31:51]} 7. Qd2 {[%clk
1:32:58]} 7... a6 {[%clk 1:32:02]} 8. O-O-O {[%clk 1:32:55]} 8... Be7 9. f4
{[%clk 1:32:24]} 9... Bd7 {[%clk 1:32:11]} 10. Nf3 {[%clk 1:32:31]} 10... b5
{[%clk 1:32:23]} 11. a3 {[%clk 1:17:55]} 11... h6 {[%clk 1:31:06]} 12. Bxf6
{[%clk 1:17:36]} 12... Bxf6 {[%clk 1:29:52]} 13. Qxd6 {[%clk 1:10:47]} 13... Be7
{[%clk 1:26:48]} 14. Qd3 {[%clk 1:08:45]} 14... Qc7 {[%clk 1:20:46]} 15. g3
{[%clk 1:01:11]} 15... Rd8 {[%clk 1:12:25]} 16. Nb1 {[%clk 0:55:12]} 16... O-O
{[%clk 0:59:55]} 17. Bg2 {[%clk 0:54:29]} 17... b4 {[%clk 0:53:16]} 18. Nfd2
{[%clk 0:42:27]} 18... Na5 {[%clk 0:39:41]} 19. axb4 {[%clk 0:37:58]} 19... Bxb4
{[%clk 0:38:42]} 20. Nc3 {[%clk 0:37:32]} 20... Rc8 {[%clk 0:31:56]} 21. Ndb1
{[%clk 0:37:07]} 21... Rfd8 {[%clk 0:31:26]} 22. Qe2 {[%clk 0:33:35]} 22... Nc4
{[%clk 0:29:32]} 23. Rd3 {[%clk 0:33:24]} 23... Qb6 {[%clk 0:27:55]} 24. b3
{[%clk 0:32:10]} 24... Na3 {[%clk 0:17:27]} 25. Rhd1 {[%clk 0:29:52]} 25... Qa5
{[%clk 0:16:02]} 26. Qe3 {[%clk 0:28:06]} 26... Nxb1 {[%clk 0:06:22]} 27. Nxb1
{[%clk 0:28:13]} 27... Rxc2+ {[%clk 0:05:38]} 28. Kxc2 {[%clk 0:28:26]} 28...
Qa2+ {[%clk 0:06:04]} 29. Kc1 {[%clk 0:28:38]} 29... Rc8+ {[%clk 0:06:31]} 30.
Rc3 {[%clk 0:28:23]} 30... Rxc3+ {[%clk 0:06:47]} 31. Qxc3 {[%clk 0:28:27]}
31... Bxc3 {[%clk 0:07:10]} 32. Nxc3 {[%clk 0:28:50]} 32... Qxg2 {[%clk
0:06:23]} 33. Rxd7 {[%clk 0:29:19]} 33... Qxh2 {[%clk 0:06:34]} 34. Rd3 {[%clk
0:29:09]} 34... h5 {[%clk 0:06:56]} 35. b4 {[%clk 0:28:54]} 35... h4 {[%clk
0:07:17]} 36. gxh4 {[%clk 0:29:14]} 36... Qxf4+ {[%clk 0:07:30]} 37. Kc2 {[%clk
0:29:34]} 37... Qxh4 {[%clk 0:07:26]} 38. Re3 {[%clk 0:29:55]} 38... g5 {[%clk
0:06:56]} 39. Kd3 {[%clk 0:30:21]} 39... g4 {[%clk 0:06:53]} 40. Ne2 {[%clk
0:30:48]} 40... Qd8+ {[%clk 0:06:51]} 41. Kc2 {[%clk 0:30:57]} 41... Qd6 {[%clk
0:06:39]} 42. Rb3 {[%clk 0:31:20]} 42... f5 {[%clk 0:06:29]} 43. exf5 {[%clk
0:31:40]} 43... exf5 {[%clk 0:06:50]} 44. b5 {[%clk 0:31:47]} 44... Qc5+ {[%clk
0:05:52]} 45. Nc3 {[%clk 0:32:14]} 45... Qf2+ {[%clk 0:05:47]} 46. Kd3 {[%clk
0:32:38]} 46... axb5 {[%clk 0:05:31]} 0-1

[Variant "Standard"]
[Site "Europe Echecs"]

[Event "Championnat du monde jeunes U12"]
[Date "2024.11.26"]
[White "Shilon Rahav, Eliran"]
[Black "Aadik Theophane Lenin"]
[WhiteElo "2150"]
[BlackElo "1857"]
[Round "11.33"]
[Result "1-0"]
[TimeControl "5400+30"]

1. e4 {[%clk 1:30:58]} 1... c5 {[%clk 1:30:14]} 2. Nf3 {[%clk 1:30:55]} 2... e6
{[%clk 1:29:45]} 3. g3 {[%clk 1:31:14]} 3... Nc6 {[%clk 1:30:07]} 4. Bg2 {[%clk
1:31:34]} 4... Nf6 {[%clk 1:30:29]} 5. Qe2 {[%clk 1:31:54]} 5... e5 {[%clk
1:30:51]} 6. O-O {[%clk 1:26:46]} 6... Be7 {[%clk 1:31:19]} 7. Nc3 {[%clk
1:23:42]} 7... d6 {[%clk 1:30:39]} 8. d3 {[%clk 1:21:47]} 8... h6 {[%clk
1:30:51]} 9. Be3 {[%clk 1:20:27]} 9... O-O {[%clk 1:28:59]} 10. Nd5 {[%clk
1:20:06]} 10... Be6 {[%clk 1:22:26]} 11. Nh4 {[%clk 1:17:48]} 11... Qd7 {[%clk
1:19:53]} 12. f4 {[%clk 1:16:02]} 12... exf4 {[%clk 1:17:51]} 13. Nxe7+ {[%clk
1:05:44]} 13... Qxe7 {[%clk 1:16:20]} 14. Rxf4 {[%clk 1:05:37]} 14... d5 {[%clk
1:12:55]} 15. exd5 Nxd5 {[%clk 1:12:13]} 16. Bxd5 {[%clk 1:01:26]} 16... Bxd5
{[%clk 1:12:42]} 17. Nf5 {[%clk 1:01:43]} 17... Qe5 {[%clk 1:11:17]} 18. Qh5
{[%clk 1:00:12]} 18... Be6 {[%clk 0:52:52]} 19. Ne7+ {[%clk 0:54:50]} 19... Kh7
{[%clk 0:53:09]} 20. Qxe5 {[%clk 0:54:55]} 20... Nxe5 {[%clk 0:53:37]} 21. Bxc5
{[%clk 0:54:25]} 21... Rfd8 {[%clk 0:53:36]} 22. d4 {[%clk 0:45:41]} 22... Nd7
{[%clk 0:52:51]} 23. Ba3 {[%clk 0:44:58]} 23... g5 {[%clk 0:50:59]} 24. Rf2
{[%clk 0:42:02]} 24... Nb6 {[%clk 0:51:01]} 25. Rd1 {[%clk 0:41:57]} 25... Nc4
{[%clk 0:51:00]} 26. Bb4 {[%clk 0:32:28]} 26... a5 {[%clk 0:47:57]} 27. Bc3
{[%clk 0:31:25]} 27... Rd7 {[%clk 0:48:22]} 28. d5 {[%clk 0:30:31]} 28... Ne3
{[%clk 0:48:45]} 29. Re1 {[%clk 0:30:17]} 29... Nxd5 {[%clk 0:44:44]} 30. Rxe6
{[%clk 0:30:27]} 30... Nf4 {[%clk 0:45:13]} 31. Rf6 {[%clk 0:30:01]} 31... Rxe7
{[%clk 0:43:01]} 32. gxf4 {[%clk 0:30:26]} 32... g4 {[%clk 0:43:27]} 33. Rd2
{[%clk 0:30:39]} 33... Rae8 {[%clk 0:43:37]} 34. Rdd6 {[%clk 0:30:56]} 34... Re6
{[%clk 0:44:05]} 35. Rxf7+ {[%clk 0:31:16]} 35... Kg8 {[%clk 0:44:34]} 36. Rg7+
{[%clk 0:31:22]} 36... Kf8 {[%clk 0:45:03]} 37. Rdd7 {[%clk 0:31:39]} 37... R6e7
{[%clk 0:45:30]} 38. Rdxe7 {[%clk 0:31:47]} 38... Rxe7 {[%clk 0:45:59]} 39. Rxe7
{[%clk 0:32:09]} 39... Kxe7 {[%clk 0:46:25]} 40. Bxa5 {[%clk 0:32:31]} 1-0

[Variant "Standard"]
[Site "Europe Echecs"]

[Event "Championnat du monde jeunes U12"]
[Date "2024.11.26"]
[White "Belin, Anton"]
[Black "Liu, Richard Jingjie"]
[WhiteElo "2138"]
[BlackElo "1795"]
[Round "11.34"]
[Result "1-0"]
[TimeControl "5400+30"]

1. e4 {[%clk 1:30:51]} 1... e5 {[%clk 1:30:56]} 2. Nf3 {[%clk 1:31:11]} 2... Nc6
{[%clk 1:31:23]} 3. Bb5 {[%clk 1:31:17]} 3... Bc5 {[%clk 1:31:46]} 4. c3 {[%clk
1:31:09]} 4... Nf6 {[%clk 1:32:10]} 5. O-O {[%clk 1:30:56]} 5... O-O {[%clk
1:31:46]} 6. d4 {[%clk 1:30:38]} 6... exd4 {[%clk 1:32:12]} 7. cxd4 {[%clk
1:30:26]} 7... Bb4 {[%clk 1:32:00]} 8. d5 {[%clk 1:27:57]} 8... Ne7 {[%clk
1:30:24]} 9. Qd4 {[%clk 1:26:38]} 9... Ba5 {[%clk 1:28:38]} 10. Bg5 {[%clk
1:25:09]} 10... Bb6 {[%clk 1:27:45]} 11. Qd3 {[%clk 1:24:05]} 11... c6 {[%clk
1:22:09]} 12. d6 {[%clk 1:22:02]} 12... Ng6 {[%clk 1:21:06]} 13. Bc4 {[%clk
1:20:50]} 13... h6 {[%clk 1:20:51]} 14. e5 {[%clk 1:20:07]} 14... hxg5 {[%clk
1:15:37]} 15. Qxg6 {[%clk 1:17:23]} 15... Nd5 {[%clk 1:15:23]} 16. Bxd5 {[%clk
1:17:24]} 16... cxd5 {[%clk 1:15:34]} 17. Qh5 {[%clk 1:17:11]} 17... f6 {[%clk
1:13:59]} 18. Nc3 {[%clk 1:16:41]} 18... Qe8 {[%clk 1:10:43]} 19. Qxe8 {[%clk
1:16:10]} 19... Rxe8 {[%clk 1:10:46]} 20. Nxd5 {[%clk 1:15:27]} 20... Bd8 {[%clk
1:08:47]} 21. exf6 {[%clk 1:15:05]} 21... gxf6 {[%clk 1:08:51]} 22. Rfe1 {[%clk
1:15:25]} 22... Re6 {[%clk 1:03:50]} 23. Nc7 {[%clk 0:51:13]} 23... Bxc7 {[%clk
0:59:44]} 24. dxc7 {[%clk 0:50:07]} 24... d5 {[%clk 0:54:47]} 25. Nd4 {[%clk
0:47:39]} 25... Rxe1+ {[%clk 0:54:49]} 26. Rxe1 {[%clk 0:47:59]} 26... a6 {[%clk
0:51:26]} 27. Re8+ {[%clk 0:47:12]} 27... Kf7 {[%clk 0:51:55]} 28. Rd8 {[%clk
0:47:30]} 28... b5 {[%clk 0:51:34]} 29. Nf5 {[%clk 0:47:29]} 29... Ke6 {[%clk
0:50:59]} 30. g4 {[%clk 0:45:43]} 30... b4 {[%clk 0:50:30]} 31. f3 {[%clk
0:45:38]} 31... a5 {[%clk 0:50:42]} 32. Kf2 {[%clk 0:45:29]} 32... a4 {[%clk
0:50:55]} 33. Ke3 {[%clk 0:45:11]} 33... b3 34. a3 {[%clk 0:45:30]} 34... Ra7
{[%clk 0:50:02]} 35. Rxc8 {[%clk 0:45:51]} 35... Kd7 {[%clk 0:50:30]} 36. Rh8
{[%clk 0:46:10]} 36... Rxc7 {[%clk 0:50:41]} 37. Rh7+ {[%clk 0:46:35]} 37... Kd8
{[%clk 0:47:43]} 38. Rxc7 {[%clk 0:46:48]} 38... Kxc7 {[%clk 0:47:36]} 39. Kd4
{[%clk 0:47:13]} 39... Kc6 {[%clk 0:47:24]} 40. Ne7+ {[%clk 0:46:56]} 1-0

[Variant "Standard"]
[Site "Europe Echecs"]

[Event "Championnat du monde jeunes U12"]
[Date "2024.11.26"]
[White "Obidov, Biloliddin"]
[Black "Kozhedub, Ivan"]
[WhiteElo "2088"]
[BlackElo "1826"]
[Round "11.35"]
[Result "0-1"]
[TimeControl "5400+30"]

1. e4 c5 {[%clk 1:30:54]} 2. Nf3 {[%clk 1:31:26]} 2... g6 {[%clk 1:31:19]} 3. c4
{[%clk 1:31:52]} 3... Nf6 {[%clk 1:31:42]} 4. Nc3 {[%clk 1:30:53]} 4... Nc6
{[%clk 1:32:07]} 5. d4 {[%clk 1:31:18]} 5... cxd4 {[%clk 1:32:35]} 6. Nxd4
{[%clk 1:31:43]} 6... Nxd4 {[%clk 1:33:03]} 7. Qxd4 {[%clk 1:32:07]} 7... d6
{[%clk 1:33:28]} 8. f3 {[%clk 1:30:08]} 8... Bg7 {[%clk 1:33:35]} 9. Be3 {[%clk
1:30:06]} 9... O-O {[%clk 1:33:56]} 10. Qd2 {[%clk 1:30:31]} 10... a5 {[%clk
1:34:14]} 11. b3 {[%clk 1:30:57]} 11... a4 {[%clk 1:32:39]} 12. b4 {[%clk
1:31:22]} 12... a3 {[%clk 1:27:53]} 13. Be2 {[%clk 1:28:42]} 13... Be6 {[%clk
1:28:05]} 14. Rc1 {[%clk 1:28:27]} 14... Nd7 {[%clk 1:24:22]} 15. O-O {[%clk
1:26:26]} 15... Nb6 {[%clk 1:20:35]} 16. Nb5 {[%clk 1:17:37]} 16... Bb2 {[%clk
1:18:22]} 17. Rc2 {[%clk 1:18:01]} 17... Rc8 {[%clk 1:18:26]} 18. Bxb6 {[%clk
1:03:17]} 18... Qxb6+ {[%clk 1:18:48]} 19. Kh1 {[%clk 1:03:42]} 19... Rc6 {[%clk
1:12:39]} 20. Bd3 {[%clk 1:02:11]} 20... Rfc8 {[%clk 0:57:49]} 21. Qe2 {[%clk
1:01:51]} 21... Qa6 {[%clk 0:53:37]} 22. f4 {[%clk 0:55:31]} 22... f6 {[%clk
0:42:50]} 23. c5 {[%clk 0:35:51]} 23... Qa4 {[%clk 0:37:35]} 24. f5 {[%clk
0:30:00]} 24... Bf7 {[%clk 0:25:51]} 25. e5 {[%clk 0:19:05]} 25... Bxe5 {[%clk
0:18:48]} 26. fxg6 {[%clk 0:17:02]} 26... hxg6 {[%clk 0:19:10]} 27. Qg4 {[%clk
0:14:14]} 27... Kg7 {[%clk 0:18:07]} 28. Qd7 {[%clk 0:13:13]} 28... R6c7 {[%clk
0:08:10]} 29. Qg4 {[%clk 0:11:22]} 29... Rxc5 {[%clk 0:07:20]} 30. Rxc5 {[%clk
0:10:22]} 30... Rxc5 {[%clk 0:07:39]} 31. Qd7 {[%clk 0:10:47]} 31... Qxb4 {[%clk
0:07:54]} 32. Nc7 {[%clk 0:06:26]} 32... Rxc7 {[%clk 0:07:16]} 33. Qxc7 {[%clk
0:06:55]} 33... Qh4 {[%clk 0:07:35]} 34. h3 {[%clk 0:06:46]} 34... Qg3 {[%clk
0:07:59]} 35. Kg1 {[%clk 0:07:14]} 35... Qe3+ {[%clk 0:08:16]} 36. Kh1 {[%clk
0:06:58]} 36... Qxd3 {[%clk 0:08:41]} 37. Rc1 {[%clk 0:05:34]} 37... Bf4 {[%clk
0:06:39]} 38. Qc3 {[%clk 0:05:47]} 38... Qd2 {[%clk 0:05:55]} 39. Qxd2 {[%clk
0:06:03]} 39... Bxd2 {[%clk 0:06:20]} 40. Rc2 {[%clk 0:06:29]} 40... Bb4 {[%clk
0:06:41]} 41. Rc7 {[%clk 0:06:55]} 41... Bxa2 {[%clk 0:06:36]} 42. Rxe7+ {[%clk
0:07:21]} 42... Bf7 {[%clk 0:07:03]} 43. Rxb7 {[%clk 0:07:48]} 43... a2 {[%clk
0:07:09]} 0-1

[Variant "Standard"]
[Site "Europe Echecs"]

[Event "Championnat du monde jeunes U12"]
[Date "2024.11.26"]
[White "Lee, Tsuen Jin Aiesec"]
[Black "Vaidyanathan, Adithya"]
[WhiteElo "1806"]
[BlackElo "2018"]
[Round "11.36"]
[Result "0-1"]
[TimeControl "5400+30"]

1. e4 c5 {[%clk 1:30:59]} 2. Nf3 {[%clk 1:31:24]} 2... Nc6 {[%clk 1:31:26]} 3.
Bc4 {[%clk 1:31:52]} 3... Nf6 {[%clk 1:31:48]} 4. Qe2 {[%clk 1:32:20]} 4... e6
{[%clk 1:31:52]} 5. O-O {[%clk 1:32:24]} 5... Be7 {[%clk 1:32:12]} 6. Nc3 {[%clk
1:31:44]} 6... d5 {[%clk 1:32:25]} 7. exd5 {[%clk 1:31:39]} 7... exd5 {[%clk
1:32:53]} 8. Bb5 {[%clk 1:32:04]} 8... O-O {[%clk 1:33:13]} 9. Rd1 {[%clk
1:32:11]} 9... a6 {[%clk 1:32:53]} 10. Bxc6 {[%clk 1:32:31]} 10... bxc6 {[%clk
1:33:21]} 11. d3 {[%clk 1:32:57]} 11... Bg4 {[%clk 1:32:49]} 12. h3 {[%clk
1:33:20]} 12... Bh5 {[%clk 1:33:11]} 13. Re1 {[%clk 1:32:25]} 13... Bd6 {[%clk
1:32:51]} 14. Bg5 {[%clk 1:31:48]} 14... h6 {[%clk 1:32:55]} 15. Bh4 {[%clk
1:31:36]} 15... g5 {[%clk 1:03:08]} 16. Bg3 {[%clk 1:31:40]} 16... Re8 {[%clk
1:03:31]} 17. Qd2 {[%clk 1:31:59]} 17... Bxf3 {[%clk 1:03:45]} 18. Rxe8+ {[%clk
1:31:14]} 18... Nxe8 {[%clk 1:04:03]} 19. gxf3 {[%clk 1:31:32]} 19... Qf6 {[%clk
1:02:51]} 20. Kg2 {[%clk 1:30:18]} 20... Ng7 {[%clk 1:01:46]} 21. Rg1 {[%clk
1:25:31]} 21... Rb8 {[%clk 1:00:58]} 22. b3 {[%clk 1:25:22]} 22... Nf5 {[%clk
0:51:26]} 23. Ne2 {[%clk 1:19:32]} 23... Re8 {[%clk 0:47:31]} 24. f4 {[%clk
1:15:57]} 24... Qe6 {[%clk 0:35:04]} 25. Nc3 {[%clk 1:14:47]} 25... Nh4+ {[%clk
0:28:02]} 26. Bxh4 {[%clk 1:15:09]} 26... Bxf4 {[%clk 0:28:01]} 27. Qd1 {[%clk
1:14:50]} 27... gxh4 {[%clk 0:28:15]} 28. Qh5 {[%clk 1:14:44]} 28... Kh7 {[%clk
0:22:51]} 29. Qf3 {[%clk 1:10:57]} 29... Qg6+ {[%clk 0:20:40]} 30. Kh1 {[%clk
1:10:18]} 30... Qf6 {[%clk 0:20:30]} 31. Qg4 {[%clk 1:08:07]} 31... Bg5 {[%clk
0:20:22]} 32. Nd1 {[%clk 1:05:23]} 32... Re5 {[%clk 0:17:19]} 33. c3 {[%clk
0:59:46]} 33... Qe6 {[%clk 0:17:00]} 34. Qg2 {[%clk 0:59:55]} 34... Re1 {[%clk
0:16:21]} 35. Qf3 {[%clk 0:59:47]} 35... Re5 {[%clk 0:14:26]} 36. Qg2 {[%clk
0:59:09]} 36... Re2 {[%clk 0:12:11]} 37. a4 {[%clk 0:58:29]} 37... Qf5 {[%clk
0:12:22]} 38. c4 {[%clk 0:52:25]} 38... Qxd3 {[%clk 0:11:46]} 39. Ne3 {[%clk
0:52:10]} 39... d4 {[%clk 0:11:54]} 40. Qf3 {[%clk 0:46:30]} 40... Kg8 {[%clk
0:04:47]} 41. Qxc6 {[%clk 0:44:13]} 41... dxe3 {[%clk 0:04:31]} 42. Qe8+ {[%clk
0:44:40]} 42... Kg7 {[%clk 0:04:52]} 43. Qe5+ {[%clk 0:44:30]} 43... Kh7 {[%clk
0:04:58]} 44. f4 {[%clk 0:44:24]} 44... Bf6 {[%clk 0:03:50]} 45. Qe8 {[%clk
0:44:30]} 45... Bg7 {[%clk 0:04:10]} 0-1

[Variant "Standard"]
[Site "Europe Echecs"]

[Event "Championnat du monde jeunes U12"]
[Date "2024.11.26"]
[White "Rueda Ahumada, Gabriel Omar"]
[Black "Nguyen Le Nguyen"]
[WhiteElo "1928"]
[BlackElo "1782"]
[Round "11.37"]
[Result "1/2-1/2"]
[TimeControl "5400+30"]

1. d4 {[%clk 1:30:55]} 1... Nf6 {[%clk 1:30:56]} 2. c4 {[%clk 1:31:20]} 2... c5
{[%clk 1:31:12]} 3. d5 {[%clk 1:31:20]} 3... b5 {[%clk 1:31:36]} 4. cxb5 {[%clk
1:30:09]} 4... a6 {[%clk 1:31:41]} 5. bxa6 {[%clk 1:29:20]} 5... Bxa6 {[%clk
1:32:00]} 6. Nc3 {[%clk 1:26:55]} 6... g6 {[%clk 1:31:09]} 7. Nf3 {[%clk
1:23:38]} 7... d6 {[%clk 1:31:06]} 8. Bg5 {[%clk 1:21:12]} 8... Bg7 {[%clk
1:31:28]} 9. Qc2 {[%clk 1:16:20]} 9... O-O {[%clk 1:31:15]} 10. g3 {[%clk
1:15:08]} 10... Qa5 {[%clk 1:30:34]} 11. Bd2 {[%clk 1:10:25]} 11... Nbd7 {[%clk
1:31:04]} 12. e4 {[%clk 1:09:18]} 12... Rfb8 {[%clk 1:30:59]} 13. Na4 {[%clk
0:50:44]} 13... Bd3 {[%clk 1:30:37]} 14. Bxd3 {[%clk 0:49:21]} 14... Qxa4 {[%clk
1:31:02]} 15. Bc3 {[%clk 0:47:42]} 15... Qxc2 {[%clk 1:30:09]} 16. Bxc2 {[%clk
0:47:24]} 16... Nb6 {[%clk 1:30:37]} 17. Nd2 {[%clk 0:39:31]} 17... e6 {[%clk
1:29:23]} 18. dxe6 {[%clk 0:38:00]} 18... fxe6 {[%clk 1:29:51]} 19. O-O {[%clk
0:32:56]} 19... d5 {[%clk 1:29:57]} 20. Be5 {[%clk 0:28:14]} 20... Rb7 {[%clk
1:29:30]} 21. exd5 {[%clk 0:23:07]} 21... exd5 {[%clk 1:29:59]} 22. b3 {[%clk
0:23:20]} 22... Re7 {[%clk 1:28:29]} 23. f4 {[%clk 0:18:31]} 23... Ng4 {[%clk
1:26:12]} 24. Nf3 {[%clk 0:15:41]} 24... Bxe5 {[%clk 1:25:25]} 25. Nxe5 {[%clk
0:15:29]} 25... Nxe5 {[%clk 1:25:52]} 26. fxe5 {[%clk 0:15:58]} 26... Rxe5
{[%clk 1:26:21]} 27. Rf2 {[%clk 0:15:56]} 27... Nc8 {[%clk 1:22:41]} 28. a4
{[%clk 0:15:36]} 28... Ne7 {[%clk 1:17:14]} 29. Kf1 {[%clk 0:09:36]} 29... Nc6
{[%clk 1:17:27]} 30. Re1 {[%clk 0:09:59]} 30... Rf8 {[%clk 1:15:47]} 31. Rxe5
{[%clk 0:05:59]} 31... Nxe5 {[%clk 1:16:09]} 32. Ke2 {[%clk 0:06:28]} 32...
Rxf2+ {[%clk 1:16:30]} 33. Kxf2 {[%clk 0:06:58]} 33... Kf7 {[%clk 1:16:19]} 34.
Ke3 {[%clk 0:06:04]} 34... Ke6 {[%clk 1:16:04]} 35. Kf4 {[%clk 0:05:48]} 35...
Nc6 {[%clk 1:16:11]} 36. h4 {[%clk 0:05:35]} 36... Nd4 {[%clk 1:15:47]} 37. Bd1
{[%clk 0:05:56]} 37... Kf6 {[%clk 1:15:22]} 38. Bf3 {[%clk 0:04:38]} 38... Ke6
39. Bd1 Kf6 {[%clk 1:10:03]} 40. Bf3 {[%clk 0:05:29]} 40... Ne6+ {[%clk
1:10:06]} 41. Ke3 {[%clk 0:05:58]} 41... Ke5 {[%clk 1:10:35]} 42. a5 {[%clk
0:05:04]} 42... Nd4 {[%clk 1:04:12]} 43. Bd1 {[%clk 0:04:33]} 43... Kd6 {[%clk
1:03:30]} 44. g4 {[%clk 0:04:25]} 44... h6 {[%clk 0:55:02]} 45. b4 {[%clk
0:03:47]} 45... g5 {[%clk 0:50:34]} 46. hxg5 {[%clk 0:03:58]} 46... hxg5 {[%clk
0:51:01]} 47. bxc5+ {[%clk 0:03:27]} 47... Kxc5 {[%clk 0:51:16]} 48. a6 {[%clk
0:03:46]} 48... Nc6 {[%clk 0:51:36]} 49. Ba4 {[%clk 0:03:27]} 49... Na7 {[%clk
0:52:03]} 50. Bd7 {[%clk 0:03:38]} 50... Kd6 {[%clk 0:52:04]} 51. Ba4 {[%clk
0:03:27]} 51... Kc5 {[%clk 0:52:08]} 52. Kd3 {[%clk 0:03:42]} 52... Nc8 {[%clk
0:52:06]} 53. Bd7 {[%clk 0:03:35]} 53... Na7 {[%clk 0:52:33]} 54. Kc3 {[%clk
0:03:11]} 54... Kd6 {[%clk 0:52:56]} 55. Be8 {[%clk 0:03:01]} 55... Kc5 {[%clk
0:53:14]} 56. Kd3 {[%clk 0:03:19]} 56... Nc8 {[%clk 0:53:36]} 1/2-1/2

[Variant "Standard"]
[Site "Europe Echecs"]

[Event "Championnat du monde jeunes U12"]
[Date "2024.11.26"]
[White "Konstantinides, Savvas"]
[Black "Yin, Milo"]
[WhiteElo "1839"]
[BlackElo "1925"]
[Round "11.38"]
[Result "0-1"]
[TimeControl "5400+30"]

1. e4 {[%clk 1:30:55]} 1... e5 {[%clk 1:30:53]} 2. Nf3 {[%clk 1:31:04]} 2... Nc6
{[%clk 1:31:15]} 3. Bb5 {[%clk 1:30:50]} 3... a6 {[%clk 1:31:35]} 4. Ba4 {[%clk
1:31:05]} 4... Nf6 {[%clk 1:31:53]} 5. O-O {[%clk 1:31:26]} 5... Be7 {[%clk
1:32:00]} 6. Re1 {[%clk 1:31:45]} 6... b5 {[%clk 1:32:23]} 7. Bb3 {[%clk
1:32:12]} 7... O-O {[%clk 1:32:38]} 8. a4 {[%clk 1:32:37]} 8... Bb7 {[%clk
1:32:47]} 9. d3 {[%clk 1:31:29]} 9... d6 {[%clk 1:33:03]} 10. Nbd2 {[%clk
1:30:58]} 10... Na5 {[%clk 1:33:07]} 11. Ba2 {[%clk 1:30:58]} 11... c5 {[%clk
1:33:19]} 12. Nf1 {[%clk 1:28:46]} 12... Qc7 {[%clk 1:27:51]} 13. Ng3 {[%clk
1:27:57]} 13... Rfc8 {[%clk 1:26:53]} 14. Nf5 {[%clk 1:26:32]} 14... Bf8 {[%clk
1:26:49]} 15. Bg5 {[%clk 1:24:26]} 15... Ne8 {[%clk 1:16:18]} 16. N3h4 {[%clk
1:22:43]} 16... c4 {[%clk 1:15:48]} 17. Qg4 {[%clk 1:20:24]} 17... d5 {[%clk
1:10:57]} 18. d4 {[%clk 1:15:29]} 18... dxe4 {[%clk 1:01:56]} 19. dxe5 {[%clk
1:14:24]} 19... Kh8 {[%clk 0:52:43]} 20. Bf4 {[%clk 1:09:44]} 20... Qb6 {[%clk
0:45:20]} 21. Re3 {[%clk 1:06:52]} 21... Rd8 {[%clk 0:35:46]} 22. Rg3 {[%clk
1:04:48]} 22... Bc8 {[%clk 0:32:38]} 23. Be3 {[%clk 1:02:53]} 23... Qc6 {[%clk
0:31:57]} 24. Qg5 {[%clk 1:00:45]} 24... Bxf5 {[%clk 0:29:14]} 25. Qxf5 {[%clk
0:59:38]} 25... Rd7 {[%clk 0:27:16]} 26. Qg4 {[%clk 0:53:27]} 26... b4 {[%clk
0:22:43]} 27. c3 {[%clk 0:52:43]} 27... Qxa4 {[%clk 0:18:32]} 28. h3 {[%clk
0:50:11]} 28... b3 {[%clk 0:16:47]} 29. e6 {[%clk 0:34:51]} 29... Nf6 {[%clk
0:14:51]} 30. Qg5 {[%clk 0:32:50]} 30... h6 {[%clk 0:07:41]} 31. Qf5 {[%clk
0:30:10]} 31... Rd5 {[%clk 0:07:50]} 32. Ng6+ {[%clk 0:26:57]} 32... fxg6 {[%clk
0:08:04]} 33. Qxg6 {[%clk 0:27:18]} 33... Qe8 {[%clk 0:06:48]} 34. e7 {[%clk
0:22:03]} 34... Qxe7 {[%clk 0:06:47]} 35. Bb1 {[%clk 0:20:40]} 35... Nc6 {[%clk
0:05:57]} 36. Bf4 {[%clk 0:19:48]} 36... Ne5 {[%clk 0:05:16]} 37. Bxe5 {[%clk
0:18:36]} 37... Qxe5 {[%clk 0:03:56]} 38. Qf7 {[%clk 0:18:09]} 38... Rd1+ {[%clk
0:01:28]} 39. Kh2 {[%clk 0:18:20]} 39... Nh5 {[%clk 0:01:03]} 40. Bxe4 {[%clk
0:15:08]} 40... Nxg3 {[%clk 0:01:10]} 41. fxg3 {[%clk 0:14:10]} 41... Rxa1
{[%clk 0:00:41]} 42. Qg6 {[%clk 0:12:10]} 42... Kg8 {[%clk 0:01:04]} 43. Qh7+
{[%clk 0:12:15]} 43... Kf7 {[%clk 0:01:20]} 44. Qg6+ {[%clk 0:12:40]} 44... Ke7
{[%clk 0:01:24]} 45. Bxa8 {[%clk 0:13:02]} 45... Qe1 {[%clk 0:01:19]} 46. g4
{[%clk 0:12:54]} 46... Qe5+ {[%clk 0:01:35]} 47. g3 {[%clk 0:13:13]} 47... Qe3
{[%clk 0:01:03]} 48. h4 {[%clk 0:13:16]} 48... Rg1 {[%clk 0:00:48]} 49. Bg2
{[%clk 0:13:25]} 49... Re1 {[%clk 0:00:38]} 50. Qc6 {[%clk 0:12:48]} 50... Re2
{[%clk 0:00:31]} 51. Kh3 {[%clk 0:10:01]} 51... Qf2 {[%clk 0:00:35]} 52. Qc7+
{[%clk 0:09:50]} 52... Kf6 {[%clk 0:00:38]} 53. Qc6+ {[%clk 0:10:07]} 53... Re6
{[%clk 0:00:32]} 54. g5+ {[%clk 0:08:47]} 54... hxg5 {[%clk 0:00:37]} 55. hxg5+
{[%clk 0:09:10]} 55... Kf7 {[%clk 0:00:35]} 56. Bd5 {[%clk 0:08:16]} 56... Qf5+
{[%clk 0:00:42]} 57. g4 {[%clk 0:08:12]} 57... Qf1+ {[%clk 0:00:58]} 58. Kg3
{[%clk 0:05:03]} 58... Qg1+ {[%clk 0:01:20]} 59. Kh3 {[%clk 0:05:10]} 59... Qe3+
{[%clk 0:01:41]} 60. Kg2 {[%clk 0:05:08]} 60... Qd2+ {[%clk 0:02:02]} 61. Kh1
{[%clk 0:04:33]} 61... Qc1+ {[%clk 0:02:26]} 62. Kh2 {[%clk 0:04:48]} 62...
Qxb2+ {[%clk 0:02:51]} 63. Kh1 {[%clk 0:04:36]} 63... Qc1+ {[%clk 0:03:12]} 64.
Kh2 {[%clk 0:05:00]} 64... Qd2+ {[%clk 0:03:34]} 65. Kh1 {[%clk 0:05:11]} 65...
Qd1+ {[%clk 0:03:50]} 66. Kh2 {[%clk 0:05:20]} 66... Qd2+ {[%clk 0:04:04]} 67.
Kh1 {[%clk 0:05:43]} 67... Qe1+ {[%clk 0:04:28]} 68. Kg2 {[%clk 0:05:44]} 68...
Qe2+ {[%clk 0:04:33]} 69. Kh1 {[%clk 0:05:48]} 69... b2 {[%clk 0:03:15]} 70.
Bxe6+ {[%clk 0:05:46]} 70... Qxe6 {[%clk 0:03:27]} 71. Qb7+ {[%clk 0:05:47]}
71... Kg8 {[%clk 0:03:29]} 72. Qxb2 {[%clk 0:05:50]} 72... Qe4+ {[%clk 0:03:55]}
73. Kh2 {[%clk 0:05:23]} 73... Bd6+ {[%clk 0:04:21]} 74. Kg1 {[%clk 0:05:41]}
74... Bc5+ {[%clk 0:04:27]} 75. Kh2 {[%clk 0:05:51]} 75... Qf4+ {[%clk 0:04:55]}
76. Kh3 {[%clk 0:05:45]} 76... Qf1+ {[%clk 0:05:20]} 77. Kg3 {[%clk 0:05:56]}
77... Bd6+ {[%clk 0:05:45]} 0-1

[Variant "Standard"]
[Site "Europe Echecs"]